fUST/lending_fUST_20250822
["ID","MTS","AMOUNT","RATE_DAILY","PERIOD"]
[380513659,1755798644765,-480.0,0.00019686,2]
[380513660,1755798644774,-595.07,0.00019686,2]
[380513661,1755798644784,-480.0,0.00019686,2]
[380513662,1755798644793,-480.0,0.00019686,2]
[380513663,1755798644802,-480.0,0.00019686,2]
[380513664,1755798644811,-2044.44,0.00019686,2]
[380513665,1755798644820,-889.73,0.00019686,2]
[380513666,1755798644829,-480.0,0.00019686,2]
[380513667,1755798644838,-480.0,0.00019686,2]
[380513668,1755798644847,-480.0,0.00019686,2]
[380513669,1755798644856,-2890.7,0.00019686,2]
[380513670,1755798644865,-480.0,0.00019686,2]
[380513671,1755798644875,-480.0,0.00019686,2]
[380513672,1755798644883,-480.0,0.00019686,2]
[380513673,1755798644893,-480.0,0.00019686,2]
[380513674,1755798644902,-876.44,0.00019686,2]
[380513675,1755798644911,-480.0,0.00019686,2]
[380513676,1755798644920,-480.0,0.00019686,2]
[380513677,1755798644928,-480.0,0.00019686,2]
[380513678,1755798644938,-480.0,0.00019686,2]
[380513679,1755798644947,-480.0,0.00019686,2]
[380513680,1755798644956,-1169.46,0.00019686,2]
[380513681,1755798644966,-1078.29,0.00019686,2]
[380513682,1755798644975,-480.0,0.00019695,2]
[380513683,1755798644985,-440.0,0.00019695,2]
[380513684,1755798644994,-480.0,0.00019695,2]
[380513685,1755798645004,-480.0,0.00019695,2]
[380513686,1755798645014,-480.0,0.00019695,2]
[380513687,1755798645024,-480.0,0.00019695,2]
[380513688,1755798645034,-377.30327567,0.00019695,2]
[380513689,1755798645048,-1033.16,0.00019695,2]
[380513690,1755798645058,-1678.05,0.00019695,2]
[380513691,1755798645067,-957.28,0.00019695,2]
[380513692,1755798645077,-480.0,0.00019695,2]
[380513693,1755798645087,-480.0,0.00019695,2]
[380513694,1755798645096,-480.0,0.00019695,2]
[380513695,1755798645105,-480.0,0.00019695,2]
[380513696,1755798645115,-647.49,0.00019695,2]
[380513697,1755798645123,-480.0,0.00019695,2]
[380513698,1755798645134,-1420.27,0.00019695,2]
[380513699,1755798645144,-480.0,0.00019695,2]
[380513700,1755798645153,-480.0,0.00019695,2]
[380513701,1755798645163,-480.0,0.00019695,2]
[380513702,1755798645172,-480.0,0.00019695,2]
[380513703,1755798645181,-480.0,0.00019695,2]
[380513704,1755798645190,-614.7,0.00019695,2]
[380513705,1755798645199,-413.86383563,0.00019695,2]
[380513706,1755798645208,-1678.64,0.00019695,2]
[380513707,1755798645217,-517.14,0.00019695,2]
[380513708,1755798645227,-767.97,0.00019695,2]
[380513709,1755798645236,-480.0,0.00019695,2]
[380513710,1755798645245,-1078.68,0.00019695,2]
[380513711,1755798645254,-1461.11,0.00019695,2]
[380513712,1755798645263,-480.0,0.00019695,2]
[380513713,1755798645272,-480.0,0.00019695,2]
[380513714,1755798645282,-480.0,0.00019695,2]
[380513715,1755798645291,-480.0,0.00019695,2]
[380513716,1755798645300,-480.0,0.00019695,2]
[380513717,1755798645309,-480.0,0.00019695,2]
[380513718,1755798645318,-480.0,0.00019695,2]
[380513719,1755798645328,-480.0,0.00019695,2]
[380513720,1755798645337,-836.24,0.00019695,2]
[380513721,1755798645346,-480.0,0.00019695,2]
[380513722,1755798645355,-480.0,0.00019695,2]
[380513723,1755798645365,-480.0,0.00019695,2]
[380513724,1755798645374,-793.0,0.00019695,2]
[380513725,1755798645383,-480.0,0.00019695,2]
[380513726,1755798645394,-1030.12,0.00019695,2]
[380513727,1755798645403,-480.0,0.00019695,2]
[380513728,1755798645412,-480.0,0.00019695,2]
[380513729,1755798645421,-670.29,0.00019695,2]
[380513730,1755798645432,-480.0,0.00019695,2]
[380513731,1755798645441,-1000.0,0.00019696,2]
[380513732,1755798645452,-500.0,0.00019696,2]
[380513733,1755798645461,-480.0,0.00019696,2]
[380513734,1755798645471,-480.0,0.00019696,2]
[380513735,1755798645480,-346.10831628,0.00019696,2]
[380513736,1755798645489,-460.0,0.00019696,2]
[380513737,1755798645544,-499.33,0.00019696,2]
[380513738,1755798645553,-480.0,0.00019696,2]
[380513739,1755798645562,-480.0,0.00019696,2]
[380513740,1755798645571,-1326.62,0.00019696,2]
[380513741,1755798645580,-480.0,0.00019696,2]
[380513742,1755798645589,-480.0,0.00019696,2]
[380513743,1755798645598,-3284.89,0.00019696,2]
[380513744,1755798645608,-480.0,0.00019696,2]
[380513745,1755798645617,-2041.53,0.00019696,2]
[380513746,1755798645626,-480.0,0.00019696,2]
[380513747,1755798645635,-924.89,0.00019696,2]
[380513748,1755798645644,-11152.98,0.00019696,2]
[380513749,1755798645653,-9515.28,0.00019696,2]
[380513750,1755798645662,-1197.74,0.00019696,2]
[380513751,1755798645671,-2074.83,0.00019696,2]
[380513752,1755798645680,-1033.159576,0.000197,2]
[380513753,1755798645689,-500.0,0.00019773,2]
[380513754,1755798645699,-500.0,0.00019773,2]
[380513755,1755798645708,-500.0,0.00019773,2]
[380513756,1755798645717,-500.0,0.00019773,2]
[380513757,1755798645726,-500.0,0.00019773,2]
[380513758,1755798645736,-500.0,0.00019773,2]
[380513759,1755798645745,-500.0,0.00019773,2]
[380513760,1755798645754,-500.0,0.00019773,2]
[380513761,1755798645763,-500.0,0.00019773,2]
[380513762,1755798645772,-500.0,0.00019773,2]
[380513763,1755798645783,-500.0,0.00019773,2]
[380513764,1755798645792,-500.0,0.00019773,2]
[380513765,1755798645802,-500.0,0.00019773,2]
[380513766,1755798645811,-500.0,0.00019773,2]
[380513767,1755798645820,-500.0,0.00019773,2]
[380513768,1755798645829,-210.59916886,0.00019773,2]
[380513769,1755798645839,-500.0,0.00019773,2]
[380513770,1755798645849,-500.0,0.00019773,2]
[380513771,1755798645858,-500.0,0.00019773,2]
[380513772,1755798645868,-480.0,0.00019795,2]
[380513773,1755798645878,-480.0,0.00019795,2]
[380513774,1755798645888,-480.0,0.00019795,2]
[380513775,1755798645898,-459.31286037,0.00019795,2]
[380513776,1755798645907,-480.0,0.00019795,2]
[380513777,1755798645916,-420.76445627,0.00019795,2]
[380513778,1755798645925,-480.0,0.00019795,2]
[380513779,1755798645935,-480.0,0.00019795,2]
[380513780,1755798645944,-480.0,0.00019795,2]
[380513781,1755798645953,-480.0,0.00019795,2]
[380513782,1755798645963,-723.94,0.00019795,2]
[380513783,1755798645972,-480.0,0.00019795,2]
[380513784,1755798645981,-460.0,0.00019795,2]
[380513785,1755798645991,-480.0,0.00019795,2]
[380513786,1755798646000,-727.19,0.00019795,2]
[380513787,1755798646010,-480.0,0.00019795,2]
[380513788,1755798646020,-480.0,0.00019795,2]
[380513789,1755798646031,-480.0,0.00019795,2]
[380513790,1755798646040,-480.0,0.00019795,2]
[380513791,1755798646054,-480.0,0.00019795,2]
[380513793,1755798646064,-480.0,0.00019795,2]
[380513795,1755798646073,-480.0,0.00019795,2]
[380513796,1755798646082,-1507.01,0.00019795,2]
[380513798,1755798646093,-480.0,0.00019795,2]
[380513800,1755798646102,-480.0,0.00019795,2]
[380513801,1755798646112,-480.0,0.00019795,2]
[380513803,1755798646122,-480.0,0.00019795,2]
[380513805,1755798646132,-492.61,0.00019795,2]
[380513806,1755798646141,-524.9,0.00019795,2]
[380513807,1755798646150,-480.0,0.00019795,2]
[380513808,1755798646158,-480.0,0.00019795,2]
[380513809,1755798646168,-480.0,0.00019795,2]
[380513810,1755798646177,-480.0,0.00019795,2]
[380513811,1755798646186,-1428.16,0.00019795,2]
[380513812,1755798646195,-872.4,0.00019795,2]
[380513813,1755798646205,-198.95149402,0.00019795,2]
[380513814,1755798646214,-480.0,0.00019795,2]
[380513815,1755798646223,-483.84,0.00019795,2]
[380513816,1755798646232,-442.00997107,0.00019795,2]
[380513817,1755798646241,-480.0,0.00019795,2]
[380513818,1755798646251,-480.0,0.00019795,2]
[380513819,1755798646261,-480.0,0.00019795,2]
[380513820,1755798646271,-480.0,0.00019795,2]
[380513821,1755798646281,-480.0,0.00019795,2]
[380513822,1755798646291,-480.0,0.00019795,2]
[380513823,1755798646300,-480.0,0.00019795,2]
[380513824,1755798646310,-480.0,0.00019795,2]
[380513825,1755798646319,-480.0,0.00019795,2]
[380513826,1755798646328,-480.0,0.00019795,2]
[380513827,1755798646337,-480.0,0.00019795,2]
[380513828,1755798646346,-480.0,0.00019795,2]
[380513829,1755798646355,-480.0,0.00019795,2]
[380513830,1755798646364,-480.0,0.00019795,2]
[380513831,1755798646373,-480.0,0.00019795,2]
[380513832,1755798646382,-480.0,0.00019795,2]
[380513833,1755798646391,-621.19,0.00019795,2]
[380513834,1755798646401,-618.6,0.00019795,2]
[380513835,1755798646410,-3280.11,0.00019795,2]
[380513836,1755798646419,-810.8,0.00019795,2]
[380513837,1755798646429,-480.0,0.00019795,2]
[380513838,1755798646438,-480.0,0.00019795,2]
[380513839,1755798646447,-480.0,0.00019795,2]
[380513840,1755798646457,-480.0,0.00019795,2]
[380513841,1755798646466,-589.21,0.00019795,2]
[380513842,1755798646475,-621.55,0.00019795,2]
[380513843,1755798646484,-480.0,0.00019795,2]
[380513844,1755798646494,-480.0,0.00019795,2]
[380513845,1755798646503,-480.0,0.00019795,2]
[380513846,1755798646512,-1495.64,0.00019795,2]
[380513847,1755798646522,-480.0,0.00019795,2]
[380513848,1755798646532,-695.63,0.00019795,2]
[380513849,1755798646541,-480.0,0.00019795,2]
[380513850,1755798646551,-654.93,0.00019795,2]
[380513851,1755798646561,-865.47,0.00019795,2]
[380513852,1755798646570,-480.0,0.00019795,2]
[380513853,1755798646580,-3867.5,0.00019795,2]
[380513854,1755798646589,-7219.66,0.00019795,2]
[380513855,1755798646598,-951.02,0.00019795,2]
[380513856,1755798646608,-480.0,0.00019795,2]
[380513857,1755798646619,-480.0,0.00019795,2]
[380513858,1755798646628,-480.0,0.00019795,2]
[380513859,1755798646637,-1837.57,0.00019795,2]
[380513860,1755798646647,-480.0,0.00019795,2]
[380513861,1755798646656,-818.75,0.00019795,2]
[380513862,1755798646665,-480.0,0.00019795,2]
[380513863,1755798646674,-480.0,0.00019795,2]
[380513864,1755798646684,-548.67,0.00019795,2]
[380513865,1755798646693,-1521.11,0.00019795,2]
[380513866,1755798646703,-1381.99,0.00019795,2]
[380513867,1755798646713,-480.0,0.00019795,2]
[380513868,1755798646722,-480.0,0.00019795,2]
[380513869,1755798646731,-480.0,0.00019795,2]
[380513870,1755798646741,-480.0,0.00019795,2]
[380513871,1755798646750,-480.0,0.00019795,2]
[380513872,1755798646759,-866.39,0.00019795,2]
[380513873,1755798646769,-480.0,0.00019795,2]
[380513874,1755798646779,-480.0,0.00019795,2]
[380513875,1755798646788,-480.0,0.00019795,2]
[380513876,1755798646798,-2767.93,0.00019795,2]
[380513877,1755798646807,-480.0,0.00019795,2]
[380513878,1755798646816,-480.0,0.00019795,2]
[380513880,1755798646825,-480.0,0.00019795,2]
[380513881,1755798646835,-151.0,0.00019796,2]
[380513882,1755798646844,-19187.29552238,0.00019796,2]
[380513884,1755798646853,-556.05,0.00019796,2]
[380513886,1755798646862,-191.19277825,0.00019796,2]
[380513888,1755798646872,-480.0,0.00019796,2]
[380513889,1755798646882,-480.0,0.00019796,2]
[380513890,1755798646891,-480.0,0.00019796,2]
[380513891,1755798646900,-480.0,0.00019796,2]
[380513892,1755798646910,-551.40395806,0.00019796,2]
[380513893,1755798646919,-480.0,0.00019796,2]
[380513894,1755798646929,-480.0,0.00019796,2]
[380513895,1755798646938,-494.94,0.00019796,2]
[380513896,1755798646948,-480.0,0.00019796,2]
[380513897,1755798646957,-480.0,0.00019796,2]
[380513898,1755798646967,-639.33,0.00019796,2]
[380513899,1755798646977,-480.0,0.00019796,2]
[380513900,1755798646987,-480.0,0.00019796,2]
[380513901,1755798646996,-603.79150926,0.00019796,2]
[380513902,1755798647006,-480.0,0.00019796,2]
[380513903,1755798647016,-1760.29,0.00019796,2]
[380513904,1755798647026,-480.0,0.00019796,2]
[380513905,1755798647036,-480.0,0.00019796,2]
[380513906,1755798647051,-480.0,0.00019796,2]
[380513907,1755798647061,-480.0,0.00019796,2]
[380513908,1755798647071,-480.0,0.00019796,2]
[380513909,1755798647080,-460.0,0.00019796,2]
[380513910,1755798647091,-480.0,0.00019796,2]
[380513911,1755798647100,-480.0,0.00019796,2]
[380513912,1755798647110,-480.0,0.00019796,2]
[380513913,1755798647120,-590.52,0.00019796,2]
[380513914,1755798647130,-480.0,0.00019797,2]
[380513915,1755798647140,-290.00312792,0.00019797,2]
[380513916,1755798647149,-480.0,0.00019797,2]
[380513917,1755798647158,-480.0,0.00019797,2]
[380513918,1755798647168,-480.0,0.00019797,2]
[380513919,1755798647178,-480.0,0.00019797,2]
[380513920,1755798647188,-480.0,0.00019797,2]
[380513921,1755798647197,-480.0,0.00019797,2]
[380513922,1755798647207,-480.0,0.00019797,2]
[380513923,1755798647216,-480.0,0.00019797,2]
[380513924,1755798647226,-480.0,0.00019797,2]
[380513925,1755798647236,-480.0,0.00019797,2]
[380513926,1755798647245,-480.0,0.00019797,2]
[380513927,1755798647254,-480.0,0.00019797,2]
[380513928,1755798647263,-480.0,0.00019797,2]
[380513929,1755798647273,-635.25,0.00019797,2]
[380513930,1755798647284,-480.0,0.00019797,2]
[380513931,1755798647295,-549.7922212,0.00019797,2]
[380513932,1755798647304,-480.0,0.00019797,2]
[380513933,1755798647314,-480.0,0.00019797,2]
[380513934,1755798647323,-480.0,0.00019797,2]
[380513935,1755798647332,-480.0,0.00019797,2]
[380513936,1755798647342,-799.42,0.00019797,2]
[380513937,1755798647351,-480.0,0.00019797,2]
[380513938,1755798647361,-480.0,0.00019797,2]
[380513940,1755798647371,-480.0,0.00019797,2]
[380513941,1755798647380,-480.0,0.00019797,2]
[380513942,1755798647390,-480.0,0.00019797,2]
[380513943,1755798647400,-480.0,0.00019797,2]
[380513944,1755798647409,-480.0,0.00019797,2]
[380513945,1755798647418,-480.0,0.00019797,2]
[380513946,1755798647428,-480.0,0.00019797,2]
[380513948,1755798647438,-480.0,0.00019797,2]
[380513950,1755798647448,-480.0,0.00019797,2]
[380513952,1755798647457,-480.0,0.00019797,2]
[380513953,1755798647467,-480.0,0.00019797,2]
[380513954,1755798647476,-480.0,0.00019797,2]
[380513956,1755798647485,-480.0,0.00019797,2]
[380513957,1755798647495,-480.0,0.00019797,2]
[380513958,1755798647504,-480.0,0.00019797,2]
[380513959,1755798647514,-480.0,0.00019797,2]
[380513960,1755798647523,-480.0,0.00019797,2]
[380513961,1755798647533,-480.0,0.00019797,2]
[380513962,1755798647543,-175.97819564,0.00019797,2]
[380513963,1755798647553,-522.55730682,0.00019797,2]
[380513965,1755798647562,-480.0,0.00019797,2]
[380513966,1755798647572,-1049.0549779,0.0001982,2]
[380513968,1755798647581,-213.324249,0.00019863,2]
[380513970,1755798647591,-480.0,0.00019896,2]
[380513972,1755798647600,-480.0,0.00019896,2]
[380513974,1755798647610,-480.0,0.00019896,2]
[380513976,1755798647621,-384.62062486,0.00019896,2]
[380513978,1755798647630,-480.0,0.00019896,2]
[380513980,1755798647640,-480.0,0.00019896,2]
[380513982,1755798647650,-480.0,0.00019899,2]
[380513985,1755798647660,-578.48,0.00019899,2]
[380513987,1755798647671,-460.0,0.00019899,2]
[380513989,1755798647680,-440.0,0.00019899,2]
[380513990,1755798647690,-480.0,0.00019899,2]
[380513992,1755798647699,-480.0,0.00019899,2]
[380513994,1755798647709,-480.0,0.00019899,2]
[380513996,1755798647719,-481.75551875,0.00019899,2]
[380513998,1755798647729,-480.0,0.00019899,2]
[380514000,1755798647739,-480.0,0.00019899,2]
[380514002,1755798647750,-480.0,0.00019899,2]
[380514004,1755798647759,-480.0,0.00019899,2]
[380514006,1755798647769,-8413.69911025,0.000199,2]
[380514008,1755798647779,-480.0,0.00019958,2]
[380514009,1755798647788,-480.0,0.00019958,2]
[380514010,1755798647798,-480.0,0.00019959,2]
[380514011,1755798647808,-674.49,0.00019959,2]
[380514012,1755798647818,-862.49,0.00019959,2]
[380514013,1755798647827,-730.52,0.00019959,2]
[380514014,1755798647837,-2992.55,0.00019959,2]
[380514015,1755798647847,-480.0,0.0001996,2]
[380514016,1755798647856,-609.58,0.0001996,2]
[380514017,1755798647866,-1761.08,0.0001996,2]
[380514018,1755798647877,-5081.96,0.0001996,2]
[380514020,1755798647886,-480.0,0.0001996,2]
[380514022,1755798647896,-480.0,0.0001996,2]
[380514024,1755798647906,-1099.74,0.0001996,2]
[380514026,1755798647916,-480.0,0.0001996,2]
[380514028,1755798647925,-480.0,0.0001996,2]
[380514030,1755798647935,-754.87,0.0001996,2]
[380514032,1755798647945,-480.0,0.0001996,2]
[380514034,1755798647957,-480.0,0.0001996,2]
[380514036,1755798647966,-4586.59,0.0001996,2]
[380514038,1755798647975,-4179.87,0.0001996,2]
[380514040,1755798647984,-3124.04,0.0001996,2]
[380514042,1755798647994,-595.07,0.0001996,2]
[380514044,1755798648003,-480.0,0.0001996,2]
[380514046,1755798648013,-480.0,0.0001996,2]
[380514048,1755798648022,-480.0,0.0001996,2]
[380514050,1755798648034,-2044.44,0.0001996,2]
[380514052,1755798648048,-889.73,0.0001996,2]
[380514054,1755798648057,-480.0,0.0001996,2]
[380514056,1755798648068,-480.0,0.0001996,2]
[380514058,1755798648078,-2890.7,0.0001996,2]
[380514060,1755798648090,-480.0,0.0001996,2]
[380514062,1755798648100,-480.0,0.0001996,2]
[380514064,1755798648110,-480.0,0.0001996,2]
[380514066,1755798648120,-480.0,0.0001996,2]
[380514068,1755798648131,-876.44,0.0001996,2]
[380514070,1755798648141,-480.0,0.0001996,2]
[380514072,1755798648151,-480.0,0.0001996,2]
[380514074,1755798648160,-480.0,0.0001996,2]
[380514076,1755798648170,-480.0,0.0001996,2]
[380514078,1755798648180,-480.0,0.0001996,2]
[380514080,1755798648190,-1169.46,0.0001996,2]
[380514082,1755798648200,-1078.29,0.0001996,2]
[380514084,1755798648211,-480.0,0.00019969,2]
[380514086,1755798648221,-480.0,0.00019969,2]
[380514088,1755798648231,-1033.16,0.00019969,2]
[380514090,1755798648242,-1678.05,0.00019969,2]
[380514092,1755798648252,-957.28,0.00019969,2]
[380514094,1755798648261,-480.0,0.00019969,2]
[380514096,1755798648271,-480.0,0.00019969,2]
[380514098,1755798648282,-480.0,0.00019969,2]
[380514100,1755798648294,-647.49,0.00019969,2]
[380514102,1755798648304,-480.0,0.00019969,2]
[380514104,1755798648315,-1420.27,0.00019969,2]
[380514106,1755798648325,-480.0,0.00019969,2]
[380514109,1755798648335,-480.0,0.00019969,2]
[380514110,1755798648345,-480.0,0.00019969,2]
[380514112,1755798648355,-480.0,0.00019969,2]
[380514115,1755798648365,-480.0,0.00019969,2]
[380514117,1755798648375,-614.7,0.00019969,2]
[380514119,1755798648385,-1678.64,0.00019969,2]
[380514121,1755798648394,-517.14,0.00019969,2]
[380514123,1755798648404,-767.97,0.00019969,2]
[380514125,1755798648414,-1049.0549779,0.00019969,2]
[380514127,1755798648423,-480.0,0.00019969,2]
[380514129,1755798648433,-1078.68,0.00019969,2]
[380514131,1755798648443,-1461.11,0.00019969,2]
[380514133,1755798648452,-480.0,0.00019969,2]
[380514135,1755798648462,-480.0,0.00019969,2]
[380514137,1755798648471,-480.0,0.00019969,2]
[380514138,1755798648480,-480.0,0.00019969,2]
[380514140,1755798648490,-480.0,0.00019969,2]
[380514143,1755798648500,-480.0,0.00019969,2]
[380514145,1755798648509,-480.0,0.00019969,2]
[380514147,1755798648519,-836.24,0.00019969,2]
[380514149,1755798648529,-480.0,0.00019969,2]
[380514151,1755798648538,-480.0,0.00019969,2]
[380514153,1755798648548,-480.0,0.00019969,2]
[380514155,1755798648558,-793.0,0.00019969,2]
[380514157,1755798648567,-480.0,0.00019969,2]
[380514159,1755798648577,-1030.12,0.00019969,2]
[380514161,1755798648587,-480.0,0.00019969,2]
[380514162,1755798648596,-670.29,0.00019969,2]
[380514164,1755798648606,-480.0,0.00019969,2]
[380514167,1755798648616,-500.0,0.0001997,2]
[380514168,1755798648626,-481.6457292,0.0001997,2]
[380514169,1755798648636,-499.33,0.0001997,2]
[380514170,1755798648647,-480.0,0.0001997,2]
[380514171,1755798648657,-480.0,0.0001997,2]
[380514172,1755798648668,-1326.62,0.0001997,2]
[380514173,1755798648678,-480.0,0.0001997,2]
[380514174,1755798648688,-480.0,0.0001997,2]
[380514175,1755798648699,-3284.89,0.0001997,2]
[380514176,1755798648709,-2041.53,0.0001997,2]
[380514177,1755798648721,-480.0,0.0001997,2]
[380514178,1755798648732,-924.89,0.0001997,2]
[380514179,1755798648742,-11152.98,0.0001997,2]
[380514180,1755798648753,-9515.28,0.0001997,2]
[380514181,1755798648763,-1197.74,0.0001997,2]
[380514182,1755798648773,-2074.83,0.0001997,2]
[380514183,1755798648784,-309.74976676,0.00019973,2]
[380514184,1755798648794,-500.0,0.00019973,2]
[380514185,1755798648805,-500.0,0.00019973,2]
[380514186,1755798648815,-500.0,0.00019973,2]
[380514187,1755798648825,-667.78100523,0.00019978,2]
[380514188,1755798648835,-100000.0,0.0001999,2]
[380514189,1755798648845,-500.0,0.00019999,2]
[380514190,1755798648856,-3716.45799434,0.0002,2]
[380514191,1755798648866,-480.0,0.00020069,2]
[380514192,1755798648878,-482.49951752,0.00020069,2]
[380514193,1755798648888,-480.0,0.00020069,2]
[380514194,1755798648898,-480.0,0.00020069,2]
[380514195,1755798648908,-480.0,0.00020069,2]
[380514196,1755798648918,-480.0,0.00020069,2]
[380514197,1755798648928,-723.94,0.00020069,2]
[380514198,1755798648939,-480.0,0.00020069,2]
[380514199,1755798648949,-727.19,0.00020069,2]
[380514200,1755798648958,-480.0,0.00020069,2]
[380514201,1755798648968,-480.0,0.00020069,2]
[380514202,1755798648978,-480.0,0.00020069,2]
[380514203,1755798648988,-480.0,0.00020069,2]
[380514204,1755798648999,-480.0,0.00020069,2]
[380514205,1755798649010,-480.0,0.00020069,2]
[380514206,1755798649019,-1507.01,0.00020069,2]
[380514207,1755798649029,-287.87349595,0.00020069,2]
[380514208,1755798649040,-480.0,0.00020069,2]
[380514210,1755798649053,-233.683151,0.00020069,2]
[380514212,1755798649063,-492.61,0.00020069,2]
[380514230,1755798649225,-524.9,0.00020069,2]
[380514232,1755798649236,-480.0,0.00020069,2]
[380514234,1755798649246,-480.0,0.00020069,2]
[380514236,1755798649255,-1428.16,0.00020069,2]
[380514238,1755798649265,-872.4,0.00020069,2]
[380514240,1755798649274,-483.84,0.00020069,2]
[380514242,1755798649283,-480.0,0.00020069,2]
[380514244,1755798649292,-475.96386539,0.00020069,2]
[380514246,1755798649301,-480.0,0.00020069,2]
[380514248,1755798649310,-480.0,0.00020069,2]
[380514250,1755798649320,-480.0,0.00020069,2]
[380514252,1755798649329,-480.0,0.00020069,2]
[380514254,1755798649338,-480.0,0.00020069,2]
[380514256,1755798649347,-480.0,0.00020069,2]
[380514258,1755798649356,-480.0,0.00020069,2]
[380514260,1755798649365,-480.0,0.00020069,2]
[380514262,1755798649377,-480.0,0.00020069,2]
[380514264,1755798649387,-480.0,0.00020069,2]
[380514266,1755798649397,-480.0,0.00020069,2]
[380514268,1755798649406,-621.19,0.00020069,2]
[380514270,1755798649415,-618.6,0.00020069,2]
[380514271,1755798649425,-3280.11,0.00020069,2]
[380514274,1755798649435,-810.8,0.00020069,2]
[380514276,1755798649447,-480.0,0.00020069,2]
[380514277,1755798649456,-480.0,0.00020069,2]
[380514280,1755798649466,-480.0,0.00020069,2]
[380514281,1755798649476,-480.0,0.00020069,2]
[380514283,1755798649487,-589.21,0.00020069,2]
[380514285,1755798649496,-621.55,0.00020069,2]
[380514287,1755798649505,-480.0,0.00020069,2]
[380514289,1755798649514,-480.0,0.00020069,2]
[380514291,1755798649523,-480.0,0.00020069,2]
[380514293,1755798649533,-1495.64,0.00020069,2]
[380514295,1755798649542,-480.0,0.00020069,2]
[380514297,1755798649553,-695.63,0.00020069,2]
[380514299,1755798649563,-532.9006167,0.00020069,2]
[380514301,1755798649572,-654.93,0.00020069,2]
[380514303,1755798649581,-865.47,0.00020069,2]
[380514305,1755798649590,-480.0,0.00020069,2]
[380514307,1755798649601,-3867.5,0.00020069,2]
[380514309,1755798649610,-7219.66,0.00020069,2]
[380514311,1755798649620,-951.02,0.00020069,2]
[380514313,1755798649629,-480.0,0.00020069,2]
[380514315,1755798649639,-1837.57,0.00020069,2]
[380514317,1755798649648,-480.0,0.00020069,2]
[380514319,1755798649657,-818.75,0.00020069,2]
[380514321,1755798649667,-480.0,0.00020069,2]
[380514323,1755798649676,-480.0,0.00020069,2]
[380514325,1755798649685,-548.67,0.00020069,2]
[380514327,1755798649694,-1521.11,0.00020069,2]
[380514329,1755798649703,-1381.99,0.00020069,2]
[380514331,1755798649712,-480.0,0.00020069,2]
[380514333,1755798649721,-480.0,0.00020069,2]
[380514335,1755798649730,-866.39,0.00020069,2]
[380514337,1755798649739,-480.0,0.00020069,2]
[380514339,1755798649748,-480.0,0.00020069,2]
[380514341,1755798649757,-2767.93,0.00020069,2]
[380514343,1755798649766,-480.0,0.00020069,2]
[380514345,1755798649775,-480.0,0.00020069,2]
[380514347,1755798649785,-480.0,0.00020069,2]